bitfinex/quotes_BTCUSD_20240730
["timestamp","ask_amount","ask_price","bid_price","bid_amount"]
[1722369577468,1.53481068,66054.0,66053.0,0.000913]
[1722369577680,1.55262981,66054.0,66053.0,0.000913]
[1722369577860,0.757162,66036.0,66035.0,0.000913]
[1722369578062,1.28469364,66036.0,66035.0,0.000913]
[1722369578269,0.757345,66020.0,66019.0,0.0015542]
[1722369578477,0.757345,66020.0,66018.0,0.000913]
[1722369578478,0.527914,66019.0,66018.0,0.000913]
[1722369578685,1.36449968,66019.0,66018.0,0.000913]
[1722369579117,1.77757939,66019.0,66018.0,0.000913]
[1722369579324,1.47463639,66019.0,66018.0,0.000913]
[1722369579523,1.49545136,66019.0,66018.0,0.000913]
[1722369580390,1.47463639,66019.0,66018.0,0.000913]
[1722369580599,1.44559968,66019.0,66018.0,0.000913]
[1722369580802,1.45959968,66019.0,66018.0,0.000913]
[1722369581000,1.47597705,66019.0,66018.0,0.000913]
[1722369581211,1.47563986,66019.0,66018.0,0.000913]
[1722369581418,2.08030536,66019.0,66018.0,0.000913]
[1722369581624,2.09310768,66019.0,66018.0,0.000913]
[1722369582052,2.11610768,66019.0,66018.0,0.000913]
[1722369582469,2.09360364,66019.0,66018.0,0.000913]
[1722369582741,1.552965,66013.0,66010.0,0.009372]
[1722369582933,1.76369804,66013.0,66010.0,0.009372]
[1722369583155,1.393405,66011.0,66010.0,0.009372]
[1722369583363,0.644089,66008.0,66007.0,0.009372]
[1722369583560,1.9191532,66008.0,66007.0,0.009372]
[1722369583760,0.01,65981.0,65963.0,0.0788]
[1722369584010,0.07534716,65982.0,65970.0,0.44444115]
[1722369584181,0.07534716,65982.0,65968.0,0.1]
[1722369584182,0.07534716,65975.0,65968.0,0.1]
[1722369584390,0.07534716,65975.0,65974.0,0.151574]
[1722369584634,0.07534716,65975.0,65969.0,0.0015542]
[1722369584852,0.22692016,65975.0,65970.0,0.151582]
[1722369585063,0.22692016,65975.0,65969.0,0.0015542]
[1722369585064,0.07534716,65975.0,65971.0,0.0015542]
[1722369585297,0.151579,65972.0,65971.0,0.0015542]
[1722369585497,0.151579,65972.0,65961.0,0.163]
[1722369585498,0.15158,65972.0,65964.0,0.0015542]
[1722369585715,0.07534716,65965.0,65964.0,0.4563422]
[1722369585890,0.07534716,65965.0,65964.0,0.0015542]
[1722369586302,0.53013316,65965.0,65964.0,0.0015542]
[1722369586566,0.53013316,65965.0,65952.0,0.0015542]
[1722369586567,0.07534716,65965.0,65952.0,0.0015542]
[1722369586769,0.83346216,65953.0,65952.0,0.0015542]
[1722369586973,0.83346216,65953.0,65939.0,0.060745]
[1722369586974,0.454875,65952.0,65945.0,0.009383]
[1722369587113,1.30520804,65952.0,65945.0,0.009383]
[1722369587315,1.83276075,65952.0,65945.0,0.009383]
[1722369587540,1.50951075,65952.0,65945.0,0.009383]
[1722369587694,1.73430804,65952.0,65945.0,0.009383]
[1722369587894,2.05755804,65952.0,65945.0,0.009383]
[1722369588171,1.394751,65946.0,65945.0,0.009383]
[1722369588371,1.5907312,65946.0,65945.0,0.009383]
[1722369588590,1.5703532,65946.0,65945.0,0.009383]
[1722369588797,2.06881959,65946.0,65945.0,0.009383]
[1722369589333,1.22210604,65946.0,65945.0,0.009383]
[1722369589548,1.52538404,65946.0,65945.0,0.009383]
[1722369589729,1.22210604,65946.0,65945.0,0.009383]
[1722369589927,1.28220604,65946.0,65945.0,0.009383]
[1722369590584,0.151639,65946.0,65945.0,0.009383]
[1722369590799,0.468917,65946.0,65945.0,0.009383]
[1722369591044,0.772195,65946.0,65945.0,0.009383]
[1722369591251,0.468917,65946.0,65945.0,0.009383]
[1722369591600,0.454917,65946.0,65945.0,0.009383]
[1722369591810,0.151639,65946.0,65945.0,0.009383]
[1722369592009,0.0148,65946.0,65945.0,0.009383]
[1722369592431,0.0148,65946.0,65945.0,1.22150604]
[1722369592632,0.0148,65946.0,65945.0,1.32150604]
[1722369592845,0.07534716,65965.0,65963.0,0.1516]
[1722369593050,0.07534716,65965.0,65961.0,0.151603]
[1722369593254,0.01,65976.0,65961.0,0.151603]
[1722369593255,0.303136,65977.0,65962.0,0.32633304]
[1722369593454,0.30315,65974.0,65962.0,0.32633304]
[1722369593713,0.30315,65974.0,65962.0,0.1757]
[1722369593714,0.07534716,65968.0,65962.0,0.1757]
[1722369593947,0.08534716,65989.0,65963.0,0.15063304]
[1722369594078,0.08534716,65989.0,65963.0,0.60543304]
[1722369594079,0.07534716,65964.0,65963.0,0.60543304]
[1722369594264,0.014,65965.0,65964.0,0.151597]
[1722369594525,0.014,65965.0,65964.0,0.840287]
[1722369594715,0.014,65965.0,65964.0,1.266482]
[1722369594924,0.44444115,65988.0,65977.0,0.1]
[1722369595094,0.07534716,65980.0,65978.0,0.15063304]
[1722369595276,0.07534716,65980.0,65979.0,0.454689]
[1722369595479,0.07534716,65989.0,65979.0,0.15063304]
[1722369595680,0.07534716,65989.0,65984.0,0.063]
[1722369596302,0.37840016,65996.0,65992.0,0.1]
[1722369596303,0.07534716,65996.0,65992.0,0.1]
[1722369596847,0.07534716,65996.0,65995.0,0.151526]
[1722369597061,0.07534716,66003.0,65995.0,0.25063304]
[1722369597274,0.07534716,66003.0,65997.0,0.1]
[1722369597483,0.07534716,66011.0,66005.0,0.1432]
[1722369597675,0.07534716,66011.0,66006.0,0.151499]
[1722369597919,0.07534716,66011.0,66005.0,0.1432]
[1722369598116,0.151501,66006.0,66005.0,0.0828]
[1722369598377,0.07534716,66011.0,66007.0,0.151496]
[1722369598652,0.07634716,66011.0,66005.0,0.23343304]
[1722369598863,0.22783616,66011.0,66005.0,0.38493504]
[1722369599287,0.07634716,66011.0,66006.0,0.25063304]
[1722369599487,0.07634716,66011.0,66010.0,0.151492]
[1722369599488,0.001,66011.0,66010.0,0.151492]
[1722369599689,0.001,66011.0,66010.0,1.00809304]
[1722369600102,0.005,66011.0,66010.0,1.31107704]
[1722369600298,0.005,66011.0,66010.0,1.00809304]
[1722369600506,0.001,66011.0,66010.0,1.31107704]
[1722369600708,0.001,66011.0,66010.0,0.25963304]
[1722369600942,0.002,66011.0,66010.0,0.71410904]
[1722369601386,0.002,66011.0,66010.0,0.25963304]
[1722369601606,0.002,66011.0,66010.0,0.41112504]
[1722369601824,0.002,66011.0,66010.0,0.25963304]
[1722369602046,0.003,66011.0,66010.0,0.021]
[1722369602502,0.457468,66011.0,66010.0,0.021]
[1722369602726,0.760447,66011.0,66010.0,0.021]
[1722369602921,1.063426,66011.0,66010.0,0.021]
[1722369603121,1.366405,66011.0,66010.0,0.021]
[1722369603338,1.366405,66011.0,65990.0,0.00924152]
[1722369603339,0.303979,66011.0,65990.0,0.00924152]
[1722369603552,0.303979,66011.0,65989.0,0.161]
[1722369603553,0.07534716,66002.0,65996.0,0.151523]
[1722369603759,0.07534716,66002.0,65991.0,0.15063304]
[1722369603931,0.07534716,66009.0,65992.0,0.303066]
[1722369604069,0.07534716,66002.0,65991.0,0.15063304]
[1722369604276,0.454614,65990.0,65989.0,0.1]
[1722369604472,0.07534716,65995.0,65979.0,0.1]
[1722369604473,0.757757,65984.0,65979.0,0.1]
[1722369604692,0.454737,65972.0,65971.0,0.1]
[1722369604893,0.151579,65972.0,65971.0,0.1]
[1722369605104,0.07534716,65975.0,65969.0,0.0801]
[1722369605321,0.07534716,65975.0,65965.0,0.1]
[1722369605595,0.02,65990.0,65961.0,0.0763]
[1722369605596,0.07534716,65995.0,65975.0,0.1]
[1722369605895,0.74748015,65998.0,65985.0,0.1]
[1722369606137,0.07534716,65992.0,65987.0,0.303088]
[1722369606346,0.07534716,65992.0,65985.0,0.1]
[1722369606620,0.07534716,65992.0,65989.0,0.003]
[1722369606953,0.07534716,66002.0,65984.0,0.1]
[1722369607186,0.151513,66001.0,65991.0,0.1]
[1722369607337,0.01,65998.0,65997.0,0.454566]
[1722369607538,0.01,65998.0,65997.0,0.303044]
[1722369607738,0.01,65998.0,65997.0,1.15224304]
[1722369607969,0.01,65998.0,65997.0,1.47828704]
[1722369608164,0.001,66011.0,66010.0,0.454476]
[1722369608577,0.001,66011.0,66009.0,0.1]
[1722369608819,0.001,66011.0,66010.0,0.75746]
[1722369609394,0.001,66011.0,66009.0,0.1]
[1722369609746,0.001,66011.0,66010.0,0.454476]
[1722369610326,0.001,66011.0,66009.0,0.1]
[1722369610545,0.07534716,66010.0,66009.0,0.1]
[1722369610745,0.001,66011.0,66010.0,0.302984]
[1722369610945,0.001,66011.0,66010.0,1.21107704]
[1722369611073,0.001,66011.0,66010.0,1.31107704]
[1722369611278,0.001,66011.0,66010.0,1.39447704]
[1722369611521,0.001,66011.0,66010.0,1.77296104]
[1722369611746,0.00854,66031.0,66030.0,0.454338]
[1722369611930,0.00854,66031.0,66030.0,0.151446]
[1722369612131,0.00854,66031.0,66030.0,0.60497104]
[1722369612350,0.00854,66031.0,66030.0,0.90786304]
[1722369612554,0.00854,66031.0,66029.0,0.0814]
[1722369612760,0.07534716,66030.0,66027.0,0.1]
[1722369612958,0.00854,66031.0,66028.0,0.302901]
[1722369613192,0.00854,66031.0,66027.0,0.25063304]
[1722369613193,0.00854,66031.0,66029.0,0.151447]
[1722369613747,0.00854,66031.0,66030.0,0.151446]
[1722369614153,0.00854,66031.0,66029.0,0.151448]
[1722369614337,0.07534716,66030.0,66027.0,0.25063304]
[1722369614539,0.07534716,66030.0,66017.0,0.302948]
[1722369614540,0.07534716,66030.0,66020.0,0.2]
[1722369614739,0.30296,66016.0,66007.0,0.1]
[1722369614946,0.07534716,66014.0,66010.0,0.151491]
[1722369615146,0.07534716,66014.0,66011.0,0.00099998]
[1722369615357,0.757437,66012.0,66011.0,0.00099998]
[1722369615685,0.07534716,66014.0,66008.0,0.15063304]
[1722369615686,0.07534716,66014.0,66009.0,0.00099998]
[1722369616057,0.15149,66011.0,66008.0,0.00099998]
[1722369616260,0.151494,66009.0,66008.0,0.00099998]
[1722369616487,0.454482,66009.0,66008.0,0.00099998]
[1722369616958,0.454482,66009.0,65988.0,0.303083]
[1722369616959,0.454531,66002.0,66001.0,0.00099998]
[1722369617164,0.303013,66004.0,65993.0,0.00099998]
[1722369617165,0.07534716,66004.0,65993.0,0.00099998]
[1722369617343,0.303016,66003.0,65996.0,0.151523]
[1722369617551,0.151517,66000.0,65997.0,0.00099998]
[1722369617753,0.151517,66000.0,65992.0,0.303066]
[1722369617754,0.151515,66000.0,65995.0,0.151526]
[1722369617947,0.151508,66003.0,65998.0,0.151517]
[1722369618195,0.07534716,66004.0,65999.0,0.00099998]
[1722369618329,0.151513,66001.0,65996.0,0.151523]
[1722369618734,0.302993,66009.0,66003.0,0.151507]
[1722369618934,0.151502,66006.0,65998.0,0.303038]
[1722369619136,0.151502,66006.0,65989.0,0.1]
[1722369619137,0.07534716,66014.0,66007.0,0.1]
[1722369619412,0.07534716,66014.0,66011.0,0.151488]
[1722369619613,0.07534716,66014.0,66008.0,0.30399298]
[1722369619838,0.07534716,66014.0,66008.0,0.00099998]
[1722369620044,0.151466,66022.0,66015.0,0.1]
[1722369620246,0.151466,66022.0,66009.0,0.15063304]
[1722369620247,0.07534716,66010.0,66009.0,0.30212704]
[1722369620451,0.151464,66022.0,66009.0,0.45362004]
[1722369620629,0.07534716,66030.0,66015.0,0.1]
[1722369620869,0.22679416,66030.0,66026.0,0.151454]
[1722369621088,0.07534716,66030.0,66016.0,0.15063304]
[1722369621287,0.151451,66028.0,66022.0,0.302929]
[1722369621511,0.07534716,66023.0,66016.0,0.15063304]
[1722369621717,0.07534716,66023.0,66022.0,0.454393]
[1722369621915,0.07534716,66023.0,66022.0,0.151464]
[1722369622026,0.07534716,66023.0,66016.0,0.15063304]
[1722369622233,0.07534716,66023.0,66022.0,0.151464]
[1722369622432,0.00854,66031.0,66030.0,0.151446]
[1722369622733,0.00854,66031.0,66030.0,0.454338]
[1722369623818,0.00854,66031.0,66030.0,1.31075504]
[1722369624036,0.302746,66062.0,66038.0,0.0753]
[1722369624224,0.07534716,66054.0,66047.0,0.1]
[1722369624456,0.07534716,66054.0,66053.0,0.151393]
[1722369624659,0.07534716,66054.0,66048.0,0.15063304]
[1722369625072,0.07534716,66054.0,66040.0,0.1]
[1722369625234,0.07534716,66047.0,66040.0,0.1]
[1722369625437,0.07534716,66047.0,66044.0,0.151413]
[1722369625655,0.07634716,66054.0,66040.0,0.1]
[1722369625858,0.151394,66053.0,66048.0,0.151403]
[1722369626226,0.07634716,66054.0,66053.0,0.45418]
[1722369626227,0.001,66054.0,66053.0,0.45418]
[1722369626431,0.001,66054.0,66053.0,0.90760004]
[1722369626651,0.001,66054.0,66053.0,1.21038704]
[1722369626860,0.001,66054.0,66053.0,1.50236974]
[1722369627073,0.001,66054.0,66053.0,1.57876974]
[1722369627274,0.002,66054.0,66053.0,1.57876974]
[1722369627399,0.001,66054.0,66053.0,1.45298704]
[1722369627605,0.001,66054.0,66053.0,1.21084104]
[1722369627827,0.002,66054.0,66053.0,1.45898704]
[1722369628248,0.002,66054.0,66053.0,1.82241504]
[1722369628458,0.002,66054.0,66053.0,1.97119521]
[1722369628646,0.0045,66054.0,66053.0,2.04691521]
[1722369629034,0.0045,66054.0,66053.0,1.92113504]
[1722369629237,0.0045,66054.0,66053.0,1.72110943]
[1722369629435,0.0025,66054.0,66053.0,1.73810943]
[1722369629613,0.0025,66054.0,66053.0,1.66238943]
[1722369629855,0.0025,66054.0,66053.0,1.53662804]
[1722369630059,0.0025,66054.0,66053.0,1.51362804]
[1722369630436,0.0025,66054.0,66043.0,0.1]
[1722369630668,0.07534716,66044.0,66043.0,0.554249]
[1722369630873,0.07534716,66051.0,66050.0,0.757]
[1722369631025,0.0025,66054.0,66053.0,0.151393]
[1722369631224,0.0035,66054.0,66053.0,1.07678184]
[1722369631434,0.0025,66054.0,66053.0,1.06278184]
[1722369632089,0.0025,66054.0,66053.0,0.756967]
[1722369632309,0.0025,66054.0,66053.0,1.31038704]
[1722369632568,0.0025,66054.0,66053.0,0.101]
[1722369632835,0.0025,66054.0,66043.0,0.1]
[1722369633067,0.0025,66054.0,66043.0,0.70488204]
[1722369633068,0.07534716,66044.0,66043.0,0.70488204]
[1722369633524,0.52958916,66044.0,66043.0,0.25063304]
[1722369633741,0.454282,66038.0,66037.0,0.1]
[1722369633949,0.151445,66031.0,66029.0,0.060662]
[1722369634188,0.07534716,66044.0,66026.0,0.1]
[1722369634189,0.07534716,66030.0,66026.0,0.1]
[1722369634388,0.07534716,66030.0,66029.0,0.151448]
[1722369634589,0.07534716,66030.0,66029.0,0.454345]
[1722369634792,0.07534716,66030.0,66029.0,0.151448]
[1722369634965,0.07534716,66030.0,66028.0,0.15145]
[1722369635172,0.07534716,66037.0,66029.0,0.0015542]
[1722369635173,0.37820816,66037.0,66029.0,0.0015542]
[1722369635374,0.151434,66035.0,66031.0,0.151443]
[1722369635842,0.37821116,66037.0,66034.0,0.302873]
[1722369635843,0.07534716,66037.0,66034.0,0.302873]
[1722369636180,0.07534716,66037.0,66033.0,0.1]
[1722369636385,0.07534716,66037.0,66036.0,0.757162]
[1722369636601,0.07534716,66037.0,66033.0,0.1]
[1722369636803,0.07534716,66037.0,66021.0,0.1271646]
[1722369636804,0.07534716,66037.0,66026.0,0.0015542]
[1722369637035,0.07534716,66037.0,66027.0,0.15063304]
[1722369637036,0.07534716,66028.0,66027.0,0.15063304]
[1722369637256,0.07534716,66028.0,66027.0,0.30208604]
[1722369637485,0.302915,66025.0,66024.0,0.039415]
[1722369637693,0.15151,66002.0,66001.0,0.03467407]
[1722369637906,0.15151,66002.0,65979.0,0.15063304]
[1722369637907,0.151561,65980.0,65979.0,0.15063304]
[1722369638099,0.151561,65980.0,65978.0,0.060704]
[1722369638100,0.59173616,65979.0,65978.0,0.060704]
[1722369638303,0.59173616,65979.0,65971.0,0.0013922]
[1722369638304,0.454737,65972.0,65971.0,0.0013922]
[1722369638515,0.22692616,65972.0,65971.0,0.0013922]
[1722369638725,0.13704716,65979.0,65971.0,0.0013922]
[1722369638726,0.151571,65976.0,65971.0,0.0013922]
[1722369638907,0.0617,65988.0,65974.0,0.303149]
[1722369639150,0.0617,65988.0,65975.0,0.15063304]
[1722369639361,0.303117,65981.0,65971.0,0.0013922]
[1722369639570,0.011,65979.0,65978.0,0.455696]
[1722369639777,0.011,65979.0,65978.0,0.30319804]
[1722369639982,0.011,65979.0,65978.0,0.001]
[1722369640592,0.465689,65979.0,65978.0,0.001]
[1722369640792,0.465689,65979.0,65971.0,0.0013922]
[1722369640793,0.0617,65988.0,65971.0,0.0013922]
[1722369640998,0.07534716,65972.0,65971.0,0.0013922]
[1722369641211,0.22692616,65972.0,65971.0,0.0023922]
[1722369641408,0.53008416,65972.0,65971.0,0.0013922]
[1722369642343,0.53408416,65972.0,65971.0,0.0013922]
[1722369642558,1.18574292,65972.0,65971.0,0.0013922]
[1722369642750,1.00384216,65972.0,65971.0,0.0013922]
[1722369642949,0.07934716,65972.0,65971.0,0.1529732]
[1722369643224,0.23092616,65972.0,65971.0,0.0013922]
[1722369643600,0.83724216,65972.0,65971.0,0.0013922]
[1722369644001,1.14440016,65972.0,65971.0,0.0013922]
[1722369644205,0.84124216,65972.0,65971.0,0.0013922]
[1722369644557,0.84124216,65972.0,65961.0,0.00018249]
[1722369644558,0.454786,65965.0,65961.0,0.00018249]
[1722369644663,1.6352482,65965.0,65961.0,0.00018249]
[1722369644870,2.4853302,65965.0,65961.0,0.00018249]
[1722369645075,1.554018,65962.0,65961.0,0.00018249]
[1722369645276,1.87125104,65962.0,65961.0,0.00018249]
[1722369645478,1.061473,65946.0,65945.0,0.009383]
[1722369645688,1.3174532,65946.0,65945.0,0.009383]
[1722369645900,2.08644589,65946.0,65945.0,0.009383]
[1722369646099,2.38972389,65946.0,65945.0,0.009383]
[1722369646556,2.08644589,65946.0,65945.0,0.009383]
[1722369646764,1.5298532,65946.0,65945.0,0.009383]
[1722369647008,0.13944716,65946.0,65945.0,0.009383]
[1722369647161,0.3181,65964.0,65945.0,0.009383]
[1722369647162,0.0631,65955.0,65945.0,0.16001604]
[1722369647358,0.0015542,65970.0,65945.0,0.16001604]
[1722369647359,0.01,65962.0,65961.0,0.001]
[1722369647563,0.01,65962.0,65961.0,0.455813]
[1722369647758,0.0821,65970.0,65959.0,0.151607]
[1722369647966,0.0631,65973.0,65963.0,0.1]
[1722369648234,0.0631,65973.0,65960.0,0.15366516]
[1722369648235,0.303094,65986.0,65970.0,0.1]
[1722369648429,0.303094,65986.0,65961.0,0.0752]
[1722369648430,0.44444115,65999.0,65983.0,0.1]
[1722369648543,0.303097,65986.0,65976.0,0.1]
[1722369648742,0.07534716,65989.0,65976.0,0.1]
[1722369648943,0.07534716,65981.0,65972.0,0.15063304]
[1722369649170,0.303129,65979.0,65972.0,0.15063304]
[1722369649371,0.07534716,65981.0,65972.0,0.15063304]
[1722369649372,0.07534716,65974.0,65972.0,0.15063304]
[1722369649570,0.07534716,65989.0,65974.0,0.303148]
[1722369649571,0.0015542,65988.0,65974.0,0.303148]
[1722369649810,0.0015542,65988.0,65987.0,0.151545]
[1722369650052,0.0015542,65995.0,65980.0,0.15156]
[1722369650252,0.07534716,65986.0,65976.0,0.303138]
[1722369650398,0.0015542,65985.0,65980.0,0.15156]
[1722369650603,0.0015542,65985.0,65975.0,0.25063304]
[1722369650604,0.151559,65981.0,65975.0,0.40220404]
[1722369650860,0.07534716,65979.0,65975.0,0.25063304]
[1722369651065,0.0015542,65978.0,65968.0,0.1]
[1722369651269,0.0015542,65978.0,65973.0,0.15063304]
[1722369651713,0.0015542,65978.0,65977.0,0.151567]
[1722369652036,0.44444115,65998.0,65983.0,0.554662]
[1722369652037,0.0015542,65984.0,65983.0,0.554662]
[1722369652240,0.0015542,65997.0,65990.0,0.1]
[1722369652419,0.0015542,65997.0,65996.0,0.454572]
[1722369652622,0.0015542,65997.0,65996.0,1.23430104]
[1722369652826,0.07534716,66017.0,66011.0,0.151489]
[1722369652827,0.0015542,66014.0,66011.0,0.151489]
[1722369653041,0.151488,66012.0,66008.0,0.1]
[1722369653253,0.07534716,66010.0,66000.0,0.303029]
[1722369653502,0.07534716,66003.0,66002.0,0.151509]
[1722369653751,0.151495,66009.0,66003.0,0.151507]
[1722369654122,0.0015542,66008.0,65999.0,0.1]
[1722369654375,0.07534716,66001.0,65999.0,0.1]
[1722369654877,0.07534716,66001.0,65994.0,0.303055]
[1722369655120,0.151521,65998.0,65994.0,0.15063304]
[1722369655373,0.302995,66008.0,65994.0,0.15063304]
[1722369655616,0.07534716,66000.0,65999.0,0.454551]
[1722369656027,0.007,66009.0,66001.0,0.1]
[1722369656239,0.007,66009.0,66008.0,0.620189]
[1722369656440,0.007,66009.0,66008.0,1.50680804]
[1722369656650,0.302834,66043.0,66008.0,1.50680804]
[1722369656651,0.0635,66047.0,66029.0,0.1]
[1722369656856,0.07534716,66030.0,66029.0,0.1781]
[1722369657058,0.07534716,66030.0,66029.0,0.935342]
[1722369657299,0.07534716,66037.0,66029.0,0.935342]
[1722369657300,0.07534716,66037.0,66036.0,0.151432]
[1722369657513,0.07534716,66037.0,66029.0,0.63163004]
[1722369657514,0.07534716,66037.0,66030.0,0.15063304]
[1722369657767,0.0635,66047.0,66029.0,0.1781]
[1722369657768,0.07534716,66051.0,66050.0,0.3028]
[1722369658000,0.44599535,66060.0,66050.0,0.3028]
[1722369658001,0.44599535,66060.0,66057.0,0.302766]
[1722369658194,0.44599535,66060.0,66050.0,0.15063304]
[1722369658195,0.44599535,66060.0,66045.0,0.1]
[1722369658510,0.07534716,66052.0,66051.0,0.454194]
[1722369658515,0.0015542,66060.0,66054.0,0.454173]
[1722369658516,0.07534716,66055.0,66054.0,0.454173]
[1722369658750,0.00854,66068.0,66061.0,0.151375]
[1722369658985,0.00854,66068.0,66054.0,0.30278]
[1722369659238,0.07534716,66055.0,66053.0,0.251392]
[1722369659481,0.07534716,66055.0,66053.0,0.1]
[1722369659482,0.151391,66054.0,66053.0,0.1]
[1722369659723,0.151399,66051.0,66045.0,0.15141]
[1722369659984,0.07534716,66055.0,66054.0,0.756955]
[1722369660258,0.30283,66044.0,66037.0,0.1]
[1722369660473,0.30283,66044.0,66029.0,0.307895]
[1722369660474,0.07534716,66038.0,66029.0,0.005]
[1722369660721,0.52968516,66030.0,66029.0,0.005]
[1722369660983,0.302921,66024.0,66015.0,0.1]
[1722369661206,0.13574716,66030.0,66015.0,0.1]
[1722369661207,0.07534716,66022.0,66016.0,0.15063304]
[1722369661443,0.07534716,66022.0,66008.0,0.1]
[1722369661677,0.07534716,66022.0,66008.0,0.251496]
[1722369661678,0.07534716,66009.0,66008.0,0.251496]
[1722369661912,0.07534716,66009.0,66008.0,0.857482]
[1722369662184,0.07534716,66022.0,66016.0,0.1]
[1722369662458,0.07534716,66022.0,66009.0,0.10302966]
[1722369662691,0.07534716,66022.0,66012.0,0.454458]
[1722369662692,0.07534716,66013.0,66012.0,0.454458]
[1722369662963,0.302976,66012.0,66009.0,0.1]
[1722369663221,0.151489,66012.0,66009.0,0.1]
[1722369663451,0.151494,66009.0,66008.0,0.006]
[1722369663691,0.07534716,66013.0,66008.0,0.006]
[1722369663938,0.151494,66009.0,66008.0,0.006]
[1722369664200,0.75747,66009.0,66008.0,0.006]
[1722369664436,0.75747,66009.0,66002.0,0.1]
[1722369664437,0.151506,66004.0,66002.0,0.1]
[1722369664680,0.302925,66023.0,66009.0,0.1]
[1722369664919,0.07534716,66013.0,66010.0,0.15063304]
[1722369665151,0.07534716,66013.0,66009.0,0.1]
[1722369665152,0.07534716,66013.0,66001.0,0.1]
[1722369665381,0.30298,66011.0,66008.0,0.004]
[1722369665622,0.07534716,66013.0,66002.0,0.15063304]
[1722369665827,0.08634716,66022.0,66012.0,0.1]
[1722369666087,0.75746,66010.0,66009.0,0.001]
[1722369666285,0.07534716,66013.0,66009.0,0.001]
[1722369666497,0.38927716,66022.0,66006.0,0.00302992]
[1722369666498,0.07534716,66022.0,66006.0,0.00302992]
[1722369666698,0.07534716,66008.0,66007.0,0.15063304]
[1722369666897,0.07534716,66008.0,65996.0,0.1]
[1722369667097,0.303035,65999.0,65989.0,0.1]
[1722369667299,0.07534716,65991.0,65982.0,0.1821]
[1722369667515,0.07534716,65991.0,65983.0,0.30218704]
[1722369667516,0.07534716,65984.0,65983.0,0.30218704]
[1722369667739,0.07534716,65984.0,65977.0,0.151567]
[1722369667962,0.07534716,65984.0,65973.0,0.1]
[1722369668165,0.07534716,65974.0,65973.0,0.251577]
[1722369668360,0.07534716,65984.0,65973.0,0.25063304]
[1722369668577,0.07534716,65976.0,65975.0,0.454717]
[1722369668796,0.07534716,65984.0,65975.0,0.15063304]
[1722369669047,0.151554,65983.0,65978.0,0.151565]
[1722369669192,0.07534716,65984.0,65976.0,0.15063304]
[1722369669193,0.151567,65977.0,65976.0,0.15063304]
[1722369669401,0.151574,65974.0,65973.0,0.1]
[1722369669601,0.07534716,65977.0,65973.0,0.251576]
[1722369669602,0.0025,65976.0,65973.0,0.251576]
[1722369669825,0.151574,65974.0,65973.0,0.1]
[1722369670268,0.151574,65974.0,65958.0,0.0772]
[1722369670269,0.303154,65973.0,65966.0,0.1]
[1722369670514,0.07534716,65969.0,65966.0,0.1]
[1722369670958,0.151595,65965.0,65959.0,0.25063304]
[1722369671176,0.07534716,65962.0,65960.0,0.15063304]
[1722369671385,0.0025,65976.0,65975.0,0.251572]
[1722369671593,0.0025,65976.0,65975.0,1.45974004]
[1722369671825,0.0025,65976.0,65975.0,1.89488504]
[1722369672033,0.1413,66024.0,66010.0,0.1]
[1722369672399,0.0776,66035.0,66011.0,0.00302953]
[1722369672612,0.0776,66035.0,66017.0,0.1]
[1722369672613,0.0637,66032.0,66017.0,0.1]
[1722369672830,0.44444115,66041.0,66032.0,0.1]
[1722369672831,0.0015542,66040.0,66032.0,0.1]
[1722369673035,0.0015542,66040.0,66039.0,0.251425]
[1722369673279,0.0015542,66040.0,66039.0,0.1]
[1722369673492,0.07534716,66055.0,66046.0,0.1]
[1722369673749,0.0015542,66061.0,66053.0,0.1]
[1722369673947,0.311204,66080.0,66064.0,0.151368]
[1722369674176,0.311204,66080.0,66064.0,0.90747304]
[1722369674177,0.303498,66079.0,66064.0,0.90747304]
[1722369674384,0.303498,66079.0,66051.0,0.1]
[1722369674385,0.07534716,66071.0,66059.0,0.1]
[1722369674600,0.07534716,66071.0,66052.0,0.1]
[1722369674601,0.07534716,66062.0,66052.0,0.1]
[1722369674802,0.07534716,66062.0,66053.0,0.15063304]
[1722369675235,0.1599,66068.0,66060.0,0.151377]
[1722369675236,0.001,66061.0,66060.0,0.151377]
[1722369675443,0.00854,66068.0,66060.0,0.151377]
[1722369675444,0.00854,66068.0,66064.0,0.454104]
[1722369675655,0.00854,66068.0,66064.0,0.90747304]
[1722369675852,0.00124528,66065.0,66064.0,0.30200104]
[1722369676075,0.00024528,66065.0,66064.0,0.15063304]
[1722369676491,0.00024528,66065.0,66063.0,0.15137]
[1722369676697,0.00024528,66065.0,66054.0,0.1]
[1722369676698,0.07534716,66064.0,66054.0,0.1]
[1722369676905,0.07534716,66064.0,66055.0,0.15063304]
[1722369677132,0.07534716,66057.0,66055.0,0.15063304]
[1722369677338,0.07534716,66064.0,66056.0,0.302773]
[1722369677563,0.07534716,66064.0,66057.0,0.15063304]
[1722369677762,0.07534716,66064.0,66058.0,0.302763]
[1722369677967,0.07534716,66064.0,66054.0,0.1]
[1722369678173,0.07534716,66057.0,66055.0,0.15063304]
[1722369678377,0.07534716,66057.0,66054.0,0.1]
[1722369678586,0.302805,66050.0,66046.0,0.1]
[1722369678788,0.07534716,66049.0,66046.0,0.25063304]
[1722369678993,0.454221,66047.0,66046.0,0.1]
[1722369679208,0.302814,66047.0,66034.0,0.1]
[1722369679411,0.07534716,66035.0,66034.0,0.1]
[1722369679610,0.07534716,66042.0,66034.0,0.1]
[1722369679769,0.37818416,66042.0,66034.0,0.1]
[1722369679939,0.07534716,66035.0,66034.0,0.1]
[1722369680142,0.07534716,66035.0,66034.0,0.25063304]
[1722369680345,0.07534716,66035.0,66034.0,0.40207004]
[1722369680544,0.07534716,66035.0,66034.0,0.70494404]
[1722369680743,0.07534716,66042.0,66034.0,0.55350704]
[1722369680948,0.07534716,66042.0,66041.0,0.454263]
[1722369681455,0.07534716,66042.0,66040.0,0.151423]
[1722369681609,0.07534716,66042.0,66035.0,0.15063304]